Cogmind - Beta 17 @@@ ROGUE MODE // 2026.07.25 @ 21:40:43 Player: rz Result: Destroyed by Executioner with Helical Railgun Performance ------------- Evolutions (5) 2500 Regions Visited (14) 2800 Robots Destroyed (76) 380 Value Destroyed (2683) 2683 Prototype IDs (24) 480 Alien Tech Used (0) 0 Bonus (1789) 1789 TOTAL SCORE: 10632 Bonus ------- Follower Combat Kills 235 Entered DSFs 500 Met Warlord at Base 500 MAIN.C Attacked Warlord 500 Warlord Defense Kills 54 Cogmind --------- Core Integrity 0/1000 Matter 291/300 Energy 94/100 System Corruption 10% Temperature Cool (9) Movement Core (50) Location -5/Warlord Parts ------- > --- POWER (2) -------- (None) > --- PROPULSION (5) --- (None) > --- UTILITY (6) ------ (None) > --- WEAPON (4) ------- (None) > --- INVENTORY (5) ---- Reinforced Fission Core Makeshift Cloaking Device Vortex Catalyst Activator Powered Hammer Peak State ------------ > --- POWER ------------ Reinforced Deuterium Engine Light Angular Momentum Engine > --- PROPULSION ------- Medium Treads Medium Treads Medium Treads Improved Medium Treads Improved Medium Treads > --- UTILITY ---------- Advanced Heat Sink High-capacity Storage Unit Enhanced Optical Array Improved Sensor Array Improved Signal Interpreter Graphene Brace > --- WEAPON ----------- Gauss Rifle Gauss Rifle Gauss Rifle Gauss Rifle > --- INVENTORY -------- Medium Treads Improved Signal Interpreter Improved Terrain Scan Processor Advanced Terrain Scan Processor Heavy Armor Plating System Restoration Module System Restoration Module High-powered Tractor Beam Gauss Rifle Gauss Rifle Gauss Rifle Gauss Rifle Gauss Rifle Gauss Rifle Coil Gun Coil Gun Coil Gun Powered Hammer [Rating: 78] Favorites ----------- Power Light Angular Momentum Engine Engine Light Angular Momentum Engine Power Core Light Fission Core Propulsion Light Treads Treads Light Treads Leg Carbon-fiber Leg Wheel Armored Wheel Flight Unit Impulse Thruster Array Utility High-capacity Storage Unit Device Graphene Brace Storage High-capacity Storage Unit Processor Improved Signal Interpreter Protection Makeshift Light Armor Plating Weapon Gauss Rifle Energy Gun Small Laser Ballistic Gun Gauss Rifle Launcher Grenade Launcher Special Weapon RU-N14's Throwing Claymores v3 Impact Weapon Mace Build | -11 -10 -10 -9 -9 -9 -8 -8 -7 -7 -6 -5 -5 -5 -5 ------- Run | Yrd Mat Min Mat Min Exi Min Mat Fac DSF Fac Fac Upp Upp War Slots Evolved 10 | . . . 2 . . . 2 2 . 2 2 . . . Power 1 | . . . . . . . . . . 1 . . . . Propulsion 3 | . . . 1 . . . 1 . . . 1 . . . Utility 4 | . . . 1 . . . . 1 . 1 1 . . . Weapon 2 | . . . . . . . 1 1 . . . . . . Parts Attached 78 | 6 3 5 5 3 . . 6 3 9 21 2 6 2 7 Power 11 | 1 1 1 . 1 . . . . 2 4 . 1 . . Engine 10 | 1 1 1 . 1 . . . . 2 3 . 1 . . Core 1 | . . . . . . . . . . 1 . . . . Reactor . | . . . . . . . . . . . . . . . Propulsion 25 | 2 . 2 2 . . . 2 . 2 9 1 1 1 3 Treads 15 | 2 . . 2 . . . 2 . 1 5 1 1 1 . Leg 5 | . . . . . . . . . 1 4 . . . . Wheel 2 | . . 2 . . . . . . . . . . . . Hover . | . . . . . . . . . . . . . . . Flight 3 | . . . . . . . . . . . . . . 3 Utility 17 | 1 2 . 3 1 . . 1 1 . 4 1 3 . . Device 9 | . 1 . 2 . . . . 1 . 4 . 1 . . Storage 3 | 1 1 . 1 . . . . . . . . . . . Processor 3 | . . . . 1 . . 1 . . . 1 . . . Hackware . | . . . . . . . . . . . . . . . Protection 2 | . . . . . . . . . . . . 2 . . Artifact . | . . . . . . . . . . . . . . . Weapon 25 | 2 . 2 . 1 . . 3 2 5 4 . 1 1 4 Energy Gun 1 | 1 . . . . . . . . . . . . . . Energy Cannon . | . . . . . . . . . . . . . . . Ballistic Gun 21 | 1 . 2 . 1 . . 2 1 5 4 . 1 1 3 Ballistic Cannon . | . . . . . . . . . . . . . . . Launcher 1 | . . . . . . . 1 . . . . . . . Special Weapon 1 | . . . . . . . . . . . . . . 1 Impact Weapon 1 | . . . . . . . . 1 . . . . . . Slashing Weapon . | . . . . . . . . . . . . . . . Piercing Weapon . | . . . . . . . . . . . . . . . Special Melee Weapon . | . . . . . . . . . . . . . . . Unidentified Prototypes 1 | . . . . . . . . . . . . . . 1 Parts Lost 34 | . 1 2 . 1 . . 1 . 3 7 . 4 4 11 Power 3 | . 1 . . . . . . . . . . 1 . 1 Propulsion 17 | . . 2 . . . . 1 . 1 4 . 1 3 5 Utility 2 | . . . . . . . . . . . . 1 . 1 Weapon 12 | . . . . 1 . . . . 2 3 . 1 1 4 Highest Loss Streak 11 | . 1 2 . 1 . . 1 . 2 3 . 1 3 11 To Critical Strikes 1 | . . 1 . . . . . . . . . . . . Average Backups 16 | . 7 10 13 17 17 18 17 17 17 17 18 18 19 19 Power 1 | . . . 2 2 3 3 1 1 . . . 1 3 2 Propulsion . | . . . . 2 2 2 1 . . . 1 . . . Utility 5 | . . . . 2 2 3 6 8 10 8 7 6 7 8 Weapon 8 | . 6 9 10 10 10 10 8 7 6 7 10 9 8 8 Tool/Special . | . . . . . . . . . . . . . . . Unused Backups 30 | . . . . . . . 2 . 6 2 . 1 1 18 Power 3 | . . . . . . . . . . . . . . 3 Propulsion . | . . . . . . . . . . . . . . . Utility 13 | . . . . . . . 1 . 2 2 . 1 . 7 Weapon 14 | . . . . . . . 1 . 4 . . . 1 8 Tool/Special . | . . . . . . . . . . . . . . . Average Slot Usage (%) 93 | . 96 97 89 99 100 100 98 99 98 95 93 89 90 87 Engine 10 | . 13 14 11 11 11 11 9 7 7 12 11 8 11 10 Treads 21 | . 28 11 7 22 22 22 28 30 27 19 27 28 19 16 Wheel 3 | . . 15 18 11 11 11 6 . . . . . . . Device 15 | . 11 14 19 20 11 11 9 14 15 18 17 12 17 16 Storage 7 | . 14 14 11 11 11 11 9 7 7 6 5 5 5 4 Processor 5 | . . . . 1 11 11 9 7 7 6 6 5 5 4 Protection 2 | . . . . . . . . . . . . 2 5 4 Energy Gun 1 | . 14 3 . . . . . . . . . . . . Ballistic Gun 23 | . 14 24 22 21 22 22 26 29 29 25 23 22 22 22 Peak Build Rating 78 | 6 9 14 17 19 19 19 27 33 42 66 78 78 78 74 Average Rating 46 | 5 8 11 15 17 19 19 24 32 34 57 72 70 70 68 On Entrance 33 | . 6 9 14 17 19 19 19 26 33 42 66 78 78 69 Avg Prop Armor Cover (%) 16 | . . 11 16 18 18 18 15 . 4 6 . . . . Naked Turns 10 | . . . . . . . . . . . . . . 10 Heaviest Build 87 | 12 48 52 53 57 56 56 59 63 73 84 83 87 87 87 Greatest Support 144 | 40 40 40 28 40 12 40 82 82 82 116 144 144 142 81 Greatest Overweight (x) 4 | 1 1 4 4 4 4 4 4 . 1 3 . . 1 1 Average Overweight (x) 1 | . . 2 1 3 4 3 . . . . . . . . Largest Inventory Capacity 20 | 8 20 20 20 20 20 20 20 20 20 20 20 20 20 20 Average Capacity 19 | 7 11 20 20 20 20 20 20 20 20 20 20 20 20 19 Most Carried 20 | 2 10 12 17 18 18 18 20 20 20 20 20 20 20 20 Average Carried 17 | . 7 10 13 17 17 18 19 19 19 19 19 18 19 19 Final Capacity 20 | 8 20 20 20 20 20 20 20 20 20 20 20 20 20 5 Final Carried 20 | 2 10 12 17 17 18 18 19 20 20 20 19 19 20 5 Class Distribution -------------------- 49% | Scavenger-Skirmisher 22% | Mutant 9% | Commander-Mutant 7% | Scavenger-Tank 3% | Skirmisher Dominant Class ---------------- Mutant | -10/Materials Mutant | -10/Mines Mutant | -9/Materials Mutant | -9/Mines Commander-Mutant | -9/Exiles Commander-Mutant | -8/Mines Scavenger-Gunner | -8/Materials Scavenger-Skirmisher | -7/Factory Scavenger-Skirmisher | -7/DSF Scavenger-Skirmisher | -6/Factory Scavenger-Skirmisher | -5/Factory Scavenger-Tank | -5/Upper Caves Scavenger-Skirmisher | -5/Upper Caves Scavenger-Skirmisher | -5/Warlord Resources | -11 -10 -10 -9 -9 -9 -8 -8 -7 -7 -6 -5 -5 -5 -5 ----------- Run | Yrd Mat Min Mat Min Exi Min Mat Fac DSF Fac Fac Upp Upp War Matter Collected 3118 | 203 141 144 134 52 . . 361 . 398 599 . 845 101 140 Remotely 363 | . . . . . . . . . . 160 . 203 . . Salvage Created 3186 | 18 365 82 134 39 . . 202 . 314 732 . 1062 211 27 Parts 173 | 3 26 3 10 6 . . 13 . 15 35 . 42 17 3 Haulers Intercepted 1 | . . . . . . . 1 . . . . . . . Recyclers Shooed 2 | . . . 1 . . . 1 . . . . . . . Parts Field Recycled . | . . . . . . . . . . . . . . . Retrieved Matter . | . . . . . . . . . . . . . . . Parts Self-Destructed 54 | . . . . . . . . . . . . 39 15 . Prevented . | . . . . . . . . . . . . . . . Parts Restored . | . . . . . . . . . . . . . . . Kills | -11 -10 -10 -9 -9 -9 -8 -8 -7 -7 -6 -5 -5 -5 -5 ------- Run | Yrd Mat Min Mat Min Exi Min Mat Fac DSF Fac Fac Upp Upp War Combat Hostiles Destroyed 73 | . 12 6 3 3 . . 3 . 6 13 . 20 6 1 Guns 72 | . 12 6 3 3 . . 2 . 6 13 . 20 6 1 AOE 1 | . . . . . . . 1 . . . . . . . Classes Destroyed 12 | 1 2 1 1 . . . 2 . 2 2 . 1 . . Worker 3 | . . . . . . . . . . 3 . . . . Tunneler 1 | 1 . . . . . . . . . . . . . . Hauler 1 | . . . . . . . 1 . . . . . . . Swarmer 31 | . 6 3 . 3 . . 1 . 2 4 . 6 5 1 Grunt 21 | . 6 . 1 . . . 1 . . 4 . 9 . . Brawler 3 | . . . . . . . . . . 1 . 2 . . Duelist 2 | . . . . . . . . . . . . 2 . . Sentry 6 | . . . 2 . . . 1 . . 1 . 1 1 . Specialist 1 | . . . . . . . . . 1 . . . . . Hunter 6 | . . . . . . . 1 . 2 3 . . . . Heavy 1 | . . . . . . . . . 1 . . . . . Assembled 3 | . . 3 . . . . . . . . . . . . Best Kill Streak 8 | 1 4 3 2 3 . . 1 . 3 7 . 8 5 1 Combat Bots Only 8 | . 4 3 2 3 . . 1 . 3 4 . 8 5 1 Max Kills in Single Turn 3 | 1 2 1 1 2 . . 1 . 1 2 . 2 3 1 Gunslinging 1 | . . . . 1 . . . . . . . 1 1 . Exploded 1 | . . . . . . . 1 . . . . . . . Melee . | . . . . . . . . . . . . . . . Uniques/NPCs Destroyed . | . . . . . . . . . . . . . . . Combat | -11 -10 -10 -9 -9 -9 -8 -8 -7 -7 -6 -5 -5 -5 -5 -------- Run | Yrd Mat Min Mat Min Exi Min Mat Fac DSF Fac Fac Upp Upp War Hostile Shots Fired 714 | . 58 31 11 14 . 6 24 . 42 189 . 129 31 179 Missed 222 | . 11 8 1 3 . 2 7 . 17 61 . 39 6 67 Hits 492 | . 47 23 10 11 . 4 17 . 25 128 . 90 25 112 Melee 10 | . . . . . . . . . . 2 . 5 . 3 Projectile 482 | . 47 23 10 11 . 4 17 . 25 126 . 85 25 109 Critical Strikes 18 | . . 2 . . . 1 . . 2 2 . 3 1 7 Actively Blocked 10 | . . . . . . . . . . 1 . 3 1 5 Part Disruptions 1 | . . 1 . . . . . . . . . . . . Damage Taken 7959 | . 526 212 139 89 . 70 261 46 538 1724 . 1783 403 2168 Core 1363 | . 110 29 . . . 13 35 . 32 119 . 126 31 868 Absorbed by Shields . | . . . . . . . . . . . . . . . Regen/Repaired (Parts) 268 | . . . . . . . . . . . . . . 268 Core Remaining (%) 85 | 100 . 44 . . . 96 93 . 95 86 . . . . Volleys Fired 219 | 15 44 18 11 6 . 3 18 . 21 32 2 35 6 8 Largest 4 | 2 2 2 2 2 . 2 3 . 4 4 4 4 4 4 Hottest 112 | 60 60 63 46 46 . 46 76 . 94 112 112 112 112 112 Shots Fired 660 | 27 88 36 22 12 . 6 54 . 84 128 8 140 24 31 Gun 659 | 27 88 36 22 12 . 6 53 . 84 128 8 140 24 31 Cannon . | . . . . . . . . . . . . . . . Launcher 1 | . . . . . . . 1 . . . . . . . Special . | . . . . . . . . . . . . . . . Kinetic 597 | 15 44 30 22 12 . 6 53 . 84 128 8 140 24 31 Thermal 62 | 12 44 6 . . . . . . . . . . . . Explosive 1 | . . . . . . . 1 . . . . . . . Electromagnetic . | . . . . . . . . . . . . . . . Robot Hit Streak 22 | 12 16 5 13 2 . 3 9 . 6 22 1 16 7 9 Robot Miss Streak 6 | 3 3 5 4 4 . 2 5 . 5 5 2 6 2 3 Penetration Max 1 | . . . . . . . . . . 1 . 1 . . Secondary Targets 15 | . . . . 1 . . . . . 2 . 9 2 1 Max Gunslinging Chain 1 | . . . . 1 . . . . . 1 . 1 1 1 Shots Hit Robots 412 | 19 60 17 14 4 . 3 35 . 48 77 3 96 14 22 Core Hits 172 | 2 25 8 6 3 . 2 11 . 19 34 1 46 9 6 Critical Kills 3 | . . . . . . . . . . 2 . 1 . . Critical Parts Destroyed 2 | . . . . . . . . . . . . 1 . 1 Critical Strikes 5 | . . . . . . . . . . 2 . 2 . 1 Destroy 5 | . . . . . . . . . . 2 . 2 . 1 Melee Attacks 3 | . . . . . . . . 1 . 2 . . . . Impact 3 | . . . . . . . . 1 . 2 . . . . Slashing . | . . . . . . . . . . . . . . . Piercing . | . . . . . . . . . . . . . . . Sneak Attacks . | . . . . . . . . . . . . . . . Combat Hostiles . | . . . . . . . . . . . . . . . Follow-up Attacks . | . . . . . . . . . . . . . . . Damage Inflicted 6978 | 185 583 217 220 69 . 33 572 . 633 1580 56 2067 319 444 Guns 6950 | 185 583 217 220 69 . 33 544 . 633 1580 56 2067 319 444 Cannons . | . . . . . . . . . . . . . . . Explosions 28 | . . . . . . . 28 . . . . . . . Melee . | . . . . . . . . . . . . . . . Ramming . | . . . . . . . . . . . . . . . Kinetic 6464 | 87 241 171 220 69 . 33 544 . 633 1580 56 2067 319 444 Thermal 486 | 98 342 46 . . . . . . . . . . . . Explosive 28 | . . . . . . . 28 . . . . . . . Electromagnetic . | . . . . . . . . . . . . . . . Impact . | . . . . . . . . . . . . . . . Slashing . | . . . . . . . . . . . . . . . Piercing . | . . . . . . . . . . . . . . . Highest Corruption 10 | . . . . . . . 1 . . . . . . 10 Average Corruption 1 | . . . . . . . 1 . . . . . . 10 Corruption Purged . | . . . . . . . . . . . . . . . Corruption Blocked . | . . . . . . . . . . . . . . . Overload Shots . | . . . . . . . . . . . . . . . Overflow Damage . | . . . . . . . . . . . . . . . Projectiles . | . . . . . . . . . . . . . . . Explosions . | . . . . . . . . . . . . . . . Melee . | . . . . . . . . . . . . . . . Knockbacks . | . . . . . . . . . . . . . . . Impact . | . . . . . . . . . . . . . . . Kinetic . | . . . . . . . . . . . . . . . Secondary . | . . . . . . . . . . . . . . . Self-Inflicted Damage . | . . . . . . . . . . . . . . . Shots . | . . . . . . . . . . . . . . . Rammed . | . . . . . . . . . . . . . . . Targets Rammed . | . . . . . . . . . . . . . . . Kicked . | . . . . . . . . . . . . . . . Crushed . | . . . . . . . . . . . . . . . Highest Temperature 199 | 40 108 120 2 4 . 4 88 . 12 199 . 69 9 51 Average Temperature 49 | 22 47 28 1 2 . 3 31 . 5 123 . 20 9 20 Received Heat Transfer 1654 | . 240 100 54 . . . 99 . . 183 . 549 9 420 Siege Activations . | . . . . . . . . . . . . . . . Martial Activations . | . . . . . . . . . . . . . . . Shielding Activations . | . . . . . . . . . . . . . . . Robots Disrupted . | . . . . . . . . . . . . . . . Combat Hostiles . | . . . . . . . . . . . . . . . Robots Corrupted . | . . . . . . . . . . . . . . . Combat Hostiles . | . . . . . . . . . . . . . . . Parts Fried . | . . . . . . . . . . . . . . . Impact Corruptions . | . . . . . . . . . . . . . . . Robots Melted . | . . . . . . . . . . . . . . . Combat Hostiles . | . . . . . . . . . . . . . . . Parts Melted 2 | . 1 . . . . . 1 . . . . . . . Heat Transferred 1100 | 225 775 100 . . . . . . . . . . . . Parts Sabotaged . | . . . . . . . . . . . . . . . Parts Stolen . | . . . . . . . . . . . . . . . Parts Stripped . | . . . . . . . . . . . . . . . Power Chain Reactions . | . . . . . . . . . . . . . . . Alert | -11 -10 -10 -9 -9 -9 -8 -8 -7 -7 -6 -5 -5 -5 -5 ------- Run | Yrd Mat Min Mat Min Exi Min Mat Fac DSF Fac Fac Upp Upp War Maximum Alert Level 1 | . . . . . . . . . . 1 . . . . Low Security (%) 99 | 100 100 100 100 100 . 100 100 100 100 95 100 . . . Level 1 . | . . . . . . . . . . 4 . . . . Level 2 . | . . . . . . . . . . . . . . . Level 3 . | . . . . . . . . . . . . . . . Level 4 . | . . . . . . . . . . . . . . . Level 5 . | . . . . . . . . . . . . . . . High Security . | . . . . . . . . . . . . . . . Max Security . | . . . . . . . . . . . . . . . Peak Influence 202 | 5 152 75 51 73 . 38 162 68 160 202 86 . . . Initial 86 | . 3 46 17 15 . . 2 68 . 84 86 . . . Average 50 | . 70 24 21 8 . 5 69 16 52 116 63 . . . Influence Increases 2365 | 5 312 85 149 95 . 38 340 29 180 485 2 495 130 20 Destroy 0b10 Robot/C 1580 | . 240 60 60 80 . 20 200 . 120 260 . 400 120 20 Destroy 0b10 Robot/NC 35 | 5 . . . . . . 15 . . 15 . . . . Destroy Leader 272 | . 50 10 30 10 . 10 52 . 30 50 . 20 10 . Allied During Kill 50 | . . . . 5 . 8 37 . . . . . . . Successful Hack 42 | . 7 . 13 . . . 8 14 . . . . . . Disable Machine 105 | . . . . . . . . 15 15 75 . . . . Destroy Structure 56 | . . . 1 . . . 13 . . 40 2 . . . Lose Combat Pursuer 225 | . 15 15 45 . . . 15 . 15 45 . 75 . . Influence Decreases 2365 | . 197 160 155 121 13 30 196 181 20 469 140 479 184 20 Entered New Map 423 | . 2 74 28 24 13 . 6 84 . 76 90 15 11 . Time Decay 1613 | . 185 86 127 55 . 30 140 97 . 249 50 428 163 3 Lost Part 165 | . 10 . . 2 . . 10 . 20 60 . 36 10 17 Lost Ally 80 | . . . . 40 . . 40 . . . . . . . Purge Threat 84 | . . . . . . . . . . 84 . . . . Squads Dispatched 13 | . 2 . 2 . . . 1 2 1 4 1 . . . Investigation 5 | . 1 . 1 . . . 1 1 . 1 . . . . Extermination 1 | . . . . . . . . 1 . . . . . . Reinforcement 4 | . 1 . 1 . . . . . 1 . 1 . . . Assault . | . . . . . . . . . . . . . . . Garrison 3 | . . . . . . . . . . 3 . . . . Intercept . | . . . . . . . . . . . . . . . Searches Triggered . | . . . . . . . . . . . . . . . Construction Impeded . | . . . . . . . . . . . . . . . Haulers Reinforced . | . . . . . . . . . . . . . . . Active Scanning Responses . | . . . . . . . . . . . . . . . Cargo Convoy Interrupts . | . . . . . . . . . . . . . . . Stealth | -11 -10 -10 -9 -9 -9 -8 -8 -7 -7 -6 -5 -5 -5 -5 --------- Run | Yrd Mat Min Mat Min Exi Min Mat Fac DSF Fac Fac Upp Upp War Distress Signals 13 | . 2 1 2 . . . 2 . . 1 . . . 5 Communications Jammed . | . . . . . . . . . . . . . . . Distress Signals . | . . . . . . . . . . . . . . . Times Spotted 129 | . 20 9 12 4 . 1 12 . 7 15 2 24 6 17 Peak Tracking Total 13 | . 6 3 8 4 . 1 4 . 4 4 1 9 5 13 Tactical Retreats 13 | . 1 4 2 . . . 1 . 1 2 . 2 . . Traps | -11 -10 -10 -9 -9 -9 -8 -8 -7 -7 -6 -5 -5 -5 -5 ------- Run | Yrd Mat Min Mat Min Exi Min Mat Fac DSF Fac Fac Upp Upp War Traps Triggered 3 | . 1 . . . . . . 1 . 1 . . . . Indirectly . | . . . . . . . . . . . . . . . Trap Hack Attempts . | . . . . . . . . . . . . . . . Triggered . | . . . . . . . . . . . . . . . Disarmed . | . . . . . . . . . . . . . . . Reprogrammed . | . . . . . . . . . . . . . . . Reused . | . . . . . . . . . . . . . . . Traps Extracted . | . . . . . . . . . . . . . . . Installed . | . . . . . . . . . . . . . . . Triggered . | . . . . . . . . . . . . . . . Machines | -11 -10 -10 -9 -9 -9 -8 -8 -7 -7 -6 -5 -5 -5 -5 ---------- Run | Yrd Mat Min Mat Min Exi Min Mat Fac DSF Fac Fac Upp Upp War Machines Disabled 7 | . . . . . . . . 1 1 5 . . . . Max in Single Turn 4 | . . . . . . . . 1 1 4 . . . . Machines Repaired . | . . . . . . . . . . . . . . . Machines Dismantled . | . . . . . . . . . . . . . . . Machines Sabotaged . | . . . . . . . . . . . . . . . Overloaded Fab Kills . | . . . . . . . . . . . . . . . Hacking | -11 -10 -10 -9 -9 -9 -8 -8 -7 -7 -6 -5 -5 -5 -5 --------- Run | Yrd Mat Min Mat Min Exi Min Mat Fac DSF Fac Fac Upp Upp War Machines Accessed 22 | . 2 . 4 . 1 . 3 4 . 2 . . 3 3 Terminals 13 | . 2 . 3 . . . 3 3 . 1 . . 1 . Fabricators . | . . . . . . . . . . . . . . . Repair Stations . | . . . . . . . . . . . . . . . Recycling Units 2 | . . . 1 . . . . 1 . . . . . . Scanalyzers 1 | . . . . . . . . . . 1 . . . . Garrison Access . | . . . . . . . . . . . . . . . Total Hacks 48 | . 3 . 11 . 1 . 7 10 . 6 . . 3 7 Successful 19 | . 1 . 3 . 1 . 1 2 . 1 . . 3 7 Failed 29 | . 2 . 8 . . . 6 8 . 5 . . . . Catastrophic 10 | . 1 . 3 . . . 4 1 . 1 . . . . Database Lockouts . | . . . . . . . . . . . . . . . Manual 14 | . 1 . 5 . 1 . 7 . . . . . . . Terminals 30 | . 3 . 8 . . . 7 7 . 4 . . 1 . Fabricators . | . . . . . . . . . . . . . . . Repair Stations . | . . . . . . . . . . . . . . . Recycling Units 6 | . . . 3 . . . . 3 . . . . . . Scanalyzers 2 | . . . . . . . . . . 2 . . . . Garrison Access . | . . . . . . . . . . . . . . . Terminal Hacks 19 | . 1 . 3 . 1 . 1 2 . 1 . . 3 7 Record 7 | . . . . . . . . . . . . . 1 6 Open Door 3 | . . . . . . . . . . . . . 2 1 Open DSF 1 | . . . . . . . . 1 . . . . . . Branch Access Points 3 | . 1 . 1 . . . 1 . . . . . . . Unreport Threat 1 | . . . . . . . . . . 1 . . . . Zone Layout 3 | . . . 2 . . . . 1 . . . . . . Proto ID Catalog 1 | . . . . . 1 . . . . . . . . . Fabricator Hacks . | . . . . . . . . . . . . . . . Repair Station Hacks . | . . . . . . . . . . . . . . . Recycling Unit Hacks . | . . . . . . . . . . . . . . . Scanalyzer . | . . . . . . . . . . . . . . . Garrison Access Hacks . | . . . . . . . . . . . . . . . Unauthorized Hacks . | . . . . . . . . . . . . . . . Terminals . | . . . . . . . . . . . . . . . Fabricators . | . . . . . . . . . . . . . . . Repair Stations . | . . . . . . . . . . . . . . . Recycling Units . | . . . . . . . . . . . . . . . Scanalyzers . | . . . . . . . . . . . . . . . Garrison Access . | . . . . . . . . . . . . . . . Data Cores Recovered . | . . . . . . . . . . . . . . . Used . | . . . . . . . . . . . . . . . Hacking Detections 13 | . 2 . 3 . . . 3 3 . 2 . . . . Full Trace Events 4 | . . . 1 . . . 1 1 . 1 . . . . Feedback Events 1 | . . . . . . . 1 . . . . . . . Corruption 1 | . . . . . . . 1 . . . . . . . Feedback Blocked . | . . . . . . . . . . . . . . . Robot Schematics Acquired . | . . . . . . . . . . . . . . . Robots Built . | . . . . . . . . . . . . . . . Authchips . | . . . . . . . . . . . . . . . Time . | . . . . . . . . . . . . . . . Total Robot Build Rating . | . . . . . . . . . . . . . . . Part Schematics Acquired . | . . . . . . . . . . . . . . . Parts Built . | . . . . . . . . . . . . . . . Authchips . | . . . . . . . . . . . . . . . Time . | . . . . . . . . . . . . . . . Total Part Build Rating . | . . . . . . . . . . . . . . . Part Studies Acquired . | . . . . . . . . . . . . . . . Parts Repaired . | . . . . . . . . . . . . . . . Time . | . . . . . . . . . . . . . . . Parts Recycled . | . . . . . . . . . . . . . . . Recycled Matter . | . . . . . . . . . . . . . . . Retrieved Matter . | . . . . . . . . . . . . . . . Retrieved Components . | . . . . . . . . . . . . . . . Parts Scanalyzed . | . . . . . . . . . . . . . . . Part Schematics Acquired . | . . . . . . . . . . . . . . . Parts Damaged . | . . . . . . . . . . . . . . . Bothacking | -11 -10 -10 -9 -9 -9 -8 -8 -7 -7 -6 -5 -5 -5 -5 ------------ Run | Yrd Mat Min Mat Min Exi Min Mat Fac DSF Fac Fac Upp Upp War Used RIF Installer . | . . . . . . . . . . . . . . . Robots Hacked . | . . . . . . . . . . . . . . . Non-combat . | . . . . . . . . . . . . . . . Combat . | . . . . . . . . . . . . . . . Robot Hacks Applied . | . . . . . . . . . . . . . . . Relay Couplers Released . | . . . . . . . . . . . . . . . Fabnet Peak Effective % . | . . . . . . . . . . . . . . . Robots Rewired 5 | . . . . . 5 . . . . . . . . . Allies Hacked . | . . . . . . . . . . . . . . . Hacks Repelled . | . . . . . . . . . . . . . . . Allies | -11 -10 -10 -9 -9 -9 -8 -8 -7 -7 -6 -5 -5 -5 -5 -------- Run | Yrd Mat Min Mat Min Exi Min Mat Fac DSF Fac Fac Upp Upp War Total Allies 7 | . . . . 2 5 . . . . . . . . . Largest Group 5 | . . . . 2 5 5 5 . . . . . . . Highest-Rated Group 66 | . . . . 41 66 66 66 . . . . . . . Highest-Rated Ally 31 | . . . . 31 21 21 21 . . . . . . . Total Orders . | . . . . . . . . . . . . . . . Ally Attacks 69 | . . . . 3 . 4 62 . . . . . . . Total Damage 687 | . . . . 21 . 34 632 . . . . . . . Kills 12 | . . . . 1 . 1 10 . . . . . . . Allies Corrupted . | . . . . . . . . . . . . . . . Allies Melted . | . . . . . . . . . . . . . . . Intel | -11 -10 -10 -9 -9 -9 -8 -8 -7 -7 -6 -5 -5 -5 -5 ------- Run | Yrd Mat Min Mat Min Exi Min Mat Fac DSF Fac Fac Upp Upp War Active Infowar (turns) 5087 | . . . 66 456 . . . 403 284 707 114 186 949 1922 Optics 63 | . . . . . . . . . . . 34 29 . . Sensors 4565 | . . . . . . . . 403 284 707 114 186 949 1922 Structural 522 | . . . 66 456 . . . . . . . . . . Robot Analysis Total . | . . . . . . . . . . . . . . . Derelict Logs Recovered 4 | . . . . . . . . . . . . 2 2 . Drone Launches . | . . . . . . . . . . . . . . . Drone Recoveries . | . . . . . . . . . . . . . . . Exploration | -11 -10 -10 -9 -9 -9 -8 -8 -7 -7 -6 -5 -5 -5 -5 ------------- Run | Yrd Mat Min Mat Min Exi Min Mat Fac DSF Fac Fac Upp Upp War Turns Passed 8616 | 119 569 280 262 532 753 253 391 404 284 707 114 1046 949 1953 Spaces Moved 4175 | 45 229 121 159 318 477 141 214 250 113 264 65 556 419 804 Core 24 | 3 . . . . . . . . . . . . . 21 Treads 2793 | 42 229 13 . 1 . 1 119 250 113 207 65 556 419 778 Legs 57 | . . . . . . . . . . 57 . . . . Wheels 1296 | . . 108 159 317 477 140 95 . . . . . . . Hover . | . . . . . . . . . . . . . . . Flight 5 | . . . . . . . . . . . . . . 5 Fastest Speed 37 | 50 160 110 110 150 150 150 110 156 155 156 160 160 160 37 Average Speed 178 | 154 185 147 121 150 150 150 142 156 171 187 160 160 217 233 Slowest Speed 385 | 160 240 240 150 240 150 240 240 156 235 385 160 160 240 240 Overloaded Moves . | . . . . . . . . . . . . . . . Propulsion Burnouts . | . . . . . . . . . . . . . . . Robots Hopped . | . . . . . . . . . . . . . . . Potential Cave-ins 2 | . . . . . . . . . . . . . . 2 Cave-ins Triggered 1 | . . . . . . . . . . . . . . 1 Exploration Rate (%) 42 | 4 46 37 20 64 72 42 27 8 78 7 2 81 62 84 Regions Visited 14 Branch Regions 7 Pre-discovered Areas . | . . . . . . . . . . . . . . . Known Exits Taken 11 | . 1 . 1 1 1 1 1 1 . 1 1 1 1 . Unknown Exits Taken 2 | 1 . 1 . . . . . . . . . . . . Scrap Searched 5 | . . 1 . . . . . . . . . 2 2 . Spaces Dug 2 | . . . . . . . . . . 2 . . . . Terrain Destroyed 65 | . . . . . . . 9 . . 50 . 2 . 4 Melee 2 | . . . . . . . . . . 2 . . . . Projectile 6 | . . . . . . . . . . 1 . 1 . 4 AOE 55 | . . . . . . . 9 . . 46 . . . . Terrain Rammed . | . . . . . . . . . . . . . . . Walls Destroyed . | . . . . . . . . . . . . . . . Machines Disabled . | . . . . . . . . . . . . . . . Actions | -11 -10 -10 -9 -9 -9 -8 -8 -7 -7 -6 -5 -5 -5 -5 --------- Run | Yrd Mat Min Mat Min Exi Min Mat Fac DSF Fac Fac Upp Upp War Total 4905 | 67 296 190 209 362 515 177 272 263 167 391 69 624 444 859 Wait 265 | . 11 44 29 34 1 34 18 . . 34 . 19 14 27 Move 4160 | 44 228 120 158 317 476 140 213 249 112 263 64 555 418 803 Hop . | . . . . . . . . . . . . . . . Pick Up 66 | 2 9 2 4 1 1 . 8 6 11 11 . 4 3 4 Fast Attach 39 | 6 1 1 4 . . . . . 6 11 1 3 1 5 Attach 27 | . 1 1 . 1 . . 4 2 4 6 1 3 1 3 Detach 4 | . . . 1 . . . 1 . . 1 . 1 . . Swap 28 | . 1 4 1 2 . . 4 2 . 11 1 2 . . Drop 51 | . 1 . 1 1 . . 6 3 13 15 . 2 1 8 Fire 219 | 15 44 18 11 6 . 3 18 . 21 32 2 35 6 8 Melee 3 | . . . . . . . . 1 . 2 . . . . Ram . | . . . . . . . . . . . . . . . Kick . | . . . . . . . . . . . . . . . Crush . | . . . . . . . . . . . . . . . Escape Stasis 6 | . . . . . . . . . . 5 . . . 1 Rewire 37 | . . . . . 37 . . . . . . . . . Trap . | . . . . . . . . . . . . . . . Miscellaneous . | . . . . . . . . . . . . . . . Route ------- -11/Scrapyard -10/Materials (discovered 3 exits: *Mat / *Min x2) -10/Mines -9/Materials (discovered 3 exits: *Min / Sto x2) -9/Mines (discovered 3 exits: *Mat x2 / *Exi) -9/Exiles (discovered 2 exits: *Min x2) -8/Mines -8/Materials -7/Factory -7/DSF -6/Factory -5/Factory -5/Upper Caves -5/Upper Caves -5/Warlord History --------- Turn | Location | Event 9 | -11/Scrapyard | Discovered new exit (range 15) 120 | -11/Scrapyard | Entered Materials 308 | -10/Materials | Build established: Mutant 513 | -10/Materials | Identified exit to Mines 588 | -10/Materials | Discovered new exit (range 3) 689 | -10/Materials | Entered Mines 690 | -10/Mines | Assembled infested the area 890 | -10/Mines | Core integrity fell below 50% 955 | -10/Mines | Discovered new exit (range 8) 969 | -10/Mines | Entered Materials 969 | -9/Materials | Evolved 2 slots: Propulsion x1, Utility x1 1194 | -9/Materials | Discovered new exit (range 16) 1195 | -9/Materials | Identified exit to Mines 1195 | -9/Materials | Identified exit to Storage 1231 | -9/Materials | Entered Mines 1322 | -9/Mines | Discovered new exit (range 14) 1661 | -9/Mines | Discovered new exit (range 16) 1688 | -9/Mines | Identified exit to Materials 1757 | -9/Mines | Deemed a non-threat by the Exiles lab entrance 1757 | -9/Mines | Discovered new exit (range 5) 1761 | -9/Mines | Identified exit to Exiles 1763 | -9/Mines | Entered Exiles 1763 | -9/Exiles | Found Exiles lab destroyed 2201 | -9/Exiles | Discovered new exit (range 14) 2297 | -9/Exiles | Build established: Commander-Mutant 2363 | -9/Exiles | Opened EX-Vault 2369 | -9/Exiles | Found Modified TNC 2499 | -9/Exiles | Discovered new exit (range 14) 2514 | -9/Exiles | Identified exit to Mines 2516 | -9/Exiles | Entered Mines 2516 | -8/Mines | Accompanied by 5 allies 2751 | -8/Mines | Discovered exit to Materials (range 10) 2769 | -8/Mines | Entered Materials 2769 | -8/Materials | Accompanied by 5 allies 2769 | -8/Materials | Evolved 2 slots: Propulsion x1, Weapon x1 3135 | -8/Materials | Discovered new exit (range 11) 3159 | -8/Materials | Identified exit to Factory 3160 | -8/Materials | Entered Factory 3160 | -7/Factory | Evolved 2 slots: Utility x1, Weapon x1 3478 | -7/Factory | Build established: Scavenger-Skirmisher 3563 | -7/Factory | Identified exit to DSF 3564 | -7/Factory | Entered DSF 3607 | -7/DSF | Additional patrols routed to DSF 3786 | -7/DSF | Discovered new exit (range 16) 3846 | -7/DSF | Identified exit to Factory 3848 | -7/DSF | Entered Factory 3848 | -6/Factory | Evolved 2 slots: Power x1, Utility x1 4055 | -6/Factory | Garrison activated, responded to threat 4127 | -6/Factory | Lost 3 parts (3n) 4544 | -6/Factory | Discovered new exit (range 5) 4550 | -6/Factory | Identified exit to Factory 4555 | -6/Factory | Entered another Factory area 4555 | -5/Factory | Evolved 2 slots: Propulsion x1, Utility x1 4648 | -5/Factory | Discovered new exit (range 10) 4662 | -5/Factory | Identified exit to Upper Caves 4669 | -5/Factory | Entered Upper Caves 4674 | -5/Upper Caves | Learned Factory stockpile data 4696 | -5/Upper Caves | Attracted the attention of an 0b10 outpost 4781 | -5/Upper Caves | Destroyed 8 combat bots 5048 | -5/Upper Caves | Build established: Scavenger-Tank 5142 | -5/Upper Caves | Learned Factory terminal intel 5461 | -5/Upper Caves | Discovered new exit (range 15) 5479 | -5/Upper Caves | Identified exit to Upper Caves 5715 | -5/Upper Caves | Entered another Upper Caves area 5865 | -5/Upper Caves | Build established: Scavenger-Skirmisher 5942 | -5/Upper Caves | Lost 3 parts (2n1w) 5973 | -5/Upper Caves | Learned location of 1 exit from Proximity Caves 6048 | -5/Upper Caves | Attracted the attention of an 0b10 checkpoint 6644 | -5/Upper Caves | Discovered new exit (range 6) 6661 | -5/Upper Caves | Identified exit to Warlord 6664 | -5/Upper Caves | Entered Warlord 7525 | -5/Warlord | Found Prototype Special Weapon 7525 | -5/Warlord | Identified RU-N14's Throwing Claymores v3 7964 | -5/Warlord | Warlord's base attacked by MAIN.C 8020 | -5/Warlord | Met Warlord 8180 | -5/Warlord | Found Prototype Launcher 8185 | -5/Warlord | Found Prototype Energy Gun 8188 | -5/Warlord | Found Prototype Energy Gun 8314 | -5/Warlord | Warlord forces counterattacked 8569 | -5/Warlord | Spotted Striker 8599 | -5/Warlord | Released all parts (10) 8602 | -5/Warlord | Lost 3 allies 8607 | -5/Warlord | Core integrity fell below 50% 8607 | -5/Warlord | Crushed by falling debris 8608 | -5/Warlord | System corruption reached 10% 8615 | -5/Warlord | Core integrity fell below 20% 8616 | -5/Warlord | Spotted Executioner 8617 | -5/Warlord | Destroyed by Executioner with Helical Railgun Last Messages --------------- 08604_ Penetrated by Slug. 08605_ Acquired VTOL Module. 08606_ Critical hit (Burn: +37). 08606_ VTOL Module destroyed. 08606_ Penetrated by Slug. 08607_ The unstable cave ceiling collapses. 08607_ Crushed by falling debris. 08607_ Impulse Thruster Array destroyed. 08607_ System corrupted by crushing effect (+5). 08607_ VTOL Module destroyed. 08607_ System corrupted by crushing effect (+5). 08607_ S-27 Virus destroyed. 08607_ Acquired 83 matter. 08609_ Acquired 57 matter. 08610_ Penetrated by Slug. 08611_ Slug penetrates Wall. 08612_ The unstable cave ceiling collapses. 08612_ Slug penetrates Blast Doors. 08613_ Penetrated by Slug. 08617_ Slug penetrates Blast Doors. Map ----- +----------------------------------------------------+ | ??????# #??????????????????????????????? | | ???#### #??????????????????????????????? | | ??## + ###????????????????????????????? | | ??# #######" # #####????????????????????????? | | ??## ####### # #????????????????????????? | | #### #????????????????????????? | | # #????????????????????????? | | + # #????????????????????????? | | ##"##### # #????????????????????????? | | ## [[![ # ###????????????????# ?????## | | #####" [!![= # % # #???????????????????# ??### | | ????#""[!*![ [%| #???????????????????? ?? | | ????#""!![%! %!% #????????????????????? ### | | ?#### " ! !=% # #????????????????????? | | ?#"" [% % ## #??????????????????????# | | "X"#" [ ==* # ##?""??????????????????# | | ? ?#" %[# !%!#!# ##""#??????????????????# | | ???##" =" *%!%!=! ###""#???????????????????# | | ????# " % !"= =![%=*!####""#####?#??????????????# | | #+### =/% ![=%=! =!["" "# ##########??????# | | # %" %% !%=g [!%!*%=%="" "" """""""#??????? | | # ###/#""=!!==g%=%=%g[*""% / """"""""#?####?# | | # ### =]%%%*[h*/=*=%i[*= %=== % ### ### | | # % =!!%! *=[%!!g!=%!* *[g!%E + | | # " =* !! [!h==/%%=% %=!g *% %^+ | | # !=%] % *g%[ @= !!= = #### | | # #[%==[ ! "" [ """"#??## | | % #=!=] ""=!= """""""""#???# | | !% % # *= %! # "" % # #########???# # | | ![ ### ###""######?????????????# # | | % ## #?#""#?????????????????? # | | * ##?#""#????????????????? ## | | # #???""#????????????????? ##? | | # # # # ##???"?????????????????? ??? | | # # ## """" ###??????????????????????# ??? | | ####??# """" #????????????????????????# #??? | | ""##### """" #????????????????????????# ???? | | X"## """" #????????????????????????# ???? | | #### ##??????????????????????? ???? | | # ####????????????????????? ????? | | " + #??????????????????????????? | | ""## #??????????????????????????? | | #### #??????????????????????????? | | ???## ### #??????????????????????????? | | ????# #?# ####+####+#??????????????????????????? | | #####+### # #??????????????????????????? | | + # #??????????????????????????? | | # # #??????????????????????????? | | """""^ # # #??????????????????????????? | | """"" # # #??????????????????????????? | +----------------------------------------------------+ Best States ------------- Heat Dissipation 59 Coolant Potential 50 Energy Generation 29 Energy Capacity 480 Matter Stores 300 Matter Capacity 300 Sight Range 22 Robot Scan Range 16 Terrain Scan Density 10 Armor Coverage 600 Evasion (%) 50 Recoil Reduction 5 Item Schematics ----------------- None Robot Schematics ------------------ None Fabricated ------------ Nothing Repaired ---------- Nothing Studied --------- None Alien Tech Used ----------------- None Achievements -------------- Luggage Code Challenges ------------ None Game ------ Seed GammaSapperWings Manual? 0 Play Time 01:05:02 Cumulative 112.0 hours Start 2026.07.25 @ 20:22:03 End 2026.07.25 @ 21:40:43 Sessions 1 Manual Loads 0 Difficulty Rogue Special Mode None Game No. 125 Rogue 71 Adventurer 54 Explorer 0 Win Type - Total 3 Types 2/0/0/1/0/0/0/0/0/0 Lore% 50 Gallery% 49 Achievement% 44 Wizard Run 0 Options --------- Layout 1 ASCII 0 Keyboard 0 Movement Mouse Keybinds 1 Fullscreen 1 Font 32/Tamsyn Map View 50x35 Zoom Use 0% Tactical HUD 1 Map Filters NONE Filters NONE Steam 1 RUN: 533090e5-b772-476a-b524-48353533b8a1